Cogmind - Beta 15 @@@ ROGUE MODE // 2025.06.11 @ 10:30:23 Player: LightKnight Result: Destroyed by Triborg with Siege Cannon Performance ------------- Evolutions (0) 0 Regions Visited (4) 800 Robots Destroyed (27) 135 Value Destroyed (742) 742 Prototype IDs (22) 440 Alien Tech Used (0) 0 Bonus (232) 232 TOTAL SCORE: 2349 Bonus ------- Registered with UFD 300 Friendly Fire -68 Cogmind --------- Core Integrity 0/250 Matter 245/300 Energy 100/100 System Corruption 0% Temperature Cool (1) Movement Rolling (110) Ox2 Location -9/Scraptown Parts ------- > --- POWER (1) -------- (None) > --- PROPULSION (2) --- Wheel > --- UTILITY (2) ------ Disposable Heat Sink Large Storage Unit > --- WEAPON (2) ------- Datajack Power Sword > --- INVENTORY (15) --- High-capacity Storage Unit Large Matter Pod (150) Surveybot 17 Chip Hardened Light Armor Plating Power Bank Plasma Cannon Mini Grenade Launcher CPS Tube (2) DRS Beacon (Ready) Peak State ------------ > --- POWER ------------ Subdweller Power Source > --- PROPULSION ------- Light Treads Subdweller Monowheel > --- UTILITY ---------- Disposable Heat Sink Large Storage Unit > --- WEAPON ----------- Subdweller Laser Datajack > --- INVENTORY -------- Small Storage Unit Medium Storage Unit High-capacity Storage Unit Large Matter Pod Subdweller Optics Surveybot 17 Chip Medium Armor Plating Power Bank Subdweller Laser Subdweller Laser DRS Beacon [Rating: 14] Favorites ----------- Power Subdweller Power Source Engine Subdweller Power Source Propulsion Light Treads Treads Light Treads Leg Aluminum Leg Wheel Subdweller Monowheel Utility Medium Storage Unit Device Disposable Heat Sink Storage Medium Storage Unit Processor Targeting Computer Protection Medium Armor Plating Weapon Subdweller Laser Energy Gun Subdweller Laser Energy Cannon Plasma Cannon Ballistic Gun Assault Rifle Ballistic Cannon Light Cannon Slashing Weapon Power Sword Special Melee Weapon Datajack Build | -11 -10 -10 -9 -9 ------- Run | Yrd Mat Sub Rec Scr Slots Evolved . | . . . . . Power . | . . . . . Propulsion . | . . . . . Utility . | . . . . . Weapon . | . . . . . Parts Attached 23 | . 3 10 4 6 Power 2 | . . 1 1 . Engine 2 | . . 1 1 . Core . | . . . . . Reactor . | . . . . . Propulsion 7 | . . 4 1 2 Treads 4 | . . 3 1 . Leg . | . . . . . Wheel 3 | . . 1 . 2 Hover . | . . . . . Flight . | . . . . . Utility 5 | . 2 . 2 1 Device 1 | . . . 1 . Storage 2 | . 1 . . 1 Processor 1 | . 1 . . . Hackware . | . . . . . Protection 1 | . . . 1 . Artifact . | . . . . . Weapon 9 | . 1 5 . 3 Energy Gun 5 | . . 5 . . Energy Cannon 1 | . . . . 1 Ballistic Gun . | . . . . . Ballistic Cannon 1 | . 1 . . . Launcher . | . . . . . Special Weapon . | . . . . . Impact Weapon . | . . . . . Slashing Weapon 1 | . . . . 1 Piercing Weapon . | . . . . . Special Melee Weapon 1 | . . . . 1 Unidentified Prototypes . | . . . . . Parts Lost 7 | . . 4 2 1 Power 2 | . . 1 1 . Propulsion 3 | . . 1 1 1 Utility . | . . . . . Weapon 2 | . . 2 . . Highest Loss Streak 2 | . . 1 2 1 To Critical Strikes . | . . . . . Average Backups 8 | . 8 9 9 7 Power . | . 1 1 . . Propulsion 1 | . 4 2 . . Utility 5 | . 1 2 5 6 Weapon 1 | . 1 1 1 1 Tool/Special . | . . . . . Unused Backups 18 | . 5 4 . 9 Power 2 | . 1 1 . . Propulsion 7 | . 4 3 . . Utility 7 | . . . . 7 Weapon 1 | . . . . 1 Tool/Special 1 | . . . . 1 Average Slot Usage (%) 97 | . 98 99 99 94 Engine 13 | . 14 13 13 12 Treads 17 | . . 27 22 12 Leg 1 | . 28 . . . Wheel 8 | . . . 5 14 Device 8 | . . . 5 14 Storage 13 | . 14 14 14 13 Processor 4 | . 12 14 4 . Energy Gun 14 | . 3 8 28 13 Ballistic Gun 2 | . 14 6 . . Ballistic Cannon 3 | . 10 12 . . Special Melee Weapon 6 | . . . . 12 Peak Build Rating 14 | . 8 12 13 14 Average Rating 11 | . 7 8 12 12 On Entrance 9 | 6 6 8 12 13 Naked Turns . | . . . . . Heaviest Build 31 | 14 20 23 30 31 Greatest Support 40 | 20 20 40 40 26 Greatest Overweight (x) 7 | . . 1 7 2 Average Overweight (x) . | . . . . . Largest Inventory Capacity 15 | . 10 10 10 15 Average Capacity 11 | . 9 10 10 12 Most Carried 12 | . 10 10 10 12 Average Carried 8 | . 8 9 9 8 Final Capacity 15 | 8 10 10 10 15 Final Carried 10 | 6 10 9 8 9 Class Distribution -------------------- 50% | Scavenger-Mutant 49% | Mutant Dominant Class ---------------- Mutant | -10/Materials Mutant | -10/Subcaves Mutant | -9/Recycling Scavenger-Mutant | -9/Scraptown Resources | -11 -10 -10 -9 -9 ----------- Run | Yrd Mat Sub Rec Scr Matter Collected 822 | 200 262 290 60 10 Remotely . | . . . . . Salvage Created 813 | . 261 448 104 . Parts 60 | . 18 34 8 . Haulers Intercepted . | . . . . . Recyclers Shooed . | . . . . . Parts Field Recycled . | . . . . . Retrieved Matter . | . . . . . Parts Self-Destructed 25 | . . 25 . . Prevented . | . . . . . Kills | -11 -10 -10 -9 -9 ------- Run | Yrd Mat Sub Rec Scr Combat Hostiles Destroyed 25 | . 8 15 2 . Guns 16 | . 2 12 2 . Cannons 9 | . 6 3 . . Classes Destroyed 5 | . 3 2 . . Watcher 2 | . 2 . . . Swarmer 9 | . 3 6 . . Grunt 8 | . 5 3 . . Sentry 3 | . . 1 2 . Subdweller 5 | . . 5 . . Best Kill Streak 5 | . 2 5 1 . Combat Bots Only 5 | . 2 5 1 . Max Kills in Single Turn 1 | . 1 1 1 . Gunslinging . | . . . . . Exploded . | . . . . . Melee . | . . . . . Uniques/NPCs Destroyed . | . . . . . Combat | -11 -10 -10 -9 -9 -------- Run | Yrd Mat Sub Rec Scr Hostile Shots Fired 151 | . 17 115 16 3 Missed 51 | . 8 42 1 . Hits 100 | . 9 73 15 3 Projectile 100 | . 9 73 15 3 Critical Strikes 1 | . . 1 . . Damage Taken 1297 | . 83 879 213 122 Core 269 | . 19 155 14 81 Absorbed by Shields . | . . . . . Core Remaining (%) 100 | 100 . . . . Volleys Fired 84 | . 20 56 8 . Largest 2 | . 2 2 2 . Hottest 120 | . 60 120 120 . Shots Fired 146 | . 40 91 15 . Gun 95 | . 21 59 15 . Cannon 51 | . 19 32 . . Launcher . | . . . . . Special . | . . . . . Kinetic 80 | . 39 41 . . Thermal 62 | . . 47 15 . Explosive . | . . . . . Electromagnetic 4 | . 1 3 . . Robot Hit Streak 10 | . 6 10 5 . Robot Miss Streak 3 | . 2 3 1 . Penetration Max . | . . . . . Secondary Targets . | . . . . . Shots Hit Robots 100 | . 18 48 10 24 Core Hits 35 | . 10 21 4 . Critical Kills . | . . . . . Critical Parts Destroyed . | . . . . . Critical Strikes 3 | . 1 1 . 1 Blast 2 | . 1 1 . . Sever 1 | . . . . 1 Melee Attacks 27 | . . . . 27 Impact . | . . . . . Slashing 1 | . . . . 1 Piercing . | . . . . . Sneak Attacks 23 | . . . . 23 Combat Hostiles . | . . . . . Follow-up Attacks . | . . . . . Damage Inflicted 1435 | . 274 836 257 68 Guns 892 | . 121 570 201 . Cannons 419 | . 153 266 . . Explosions . | . . . . . Melee 68 | . . . . 68 Ramming 56 | . . . 56 . Kinetic 631 | . 274 357 . . Thermal 647 | . . 446 201 . Explosive . | . . . . . Electromagnetic 33 | . . 33 . . Impact . | . . . . . Slashing 68 | . . . . 68 Piercing . | . . . . . Highest Corruption . | . . . . . Average Corruption . | . . . . . Corruption Purged . | . . . . . Corruption Blocked . | . . . . . Overload Shots . | . . . . . Overflow Damage . | . . . . . Projectiles . | . . . . . Explosions . | . . . . . Melee . | . . . . . Knockbacks 4 | . . 4 . . Impact . | . . . . . Kinetic 4 | . . 4 . . Secondary . | . . . . . Self-Inflicted Damage 5 | . . . 5 . Shots . | . . . . . Rammed 12 | . . . 12 . Targets Rammed 12 | . . . 12 . Kicked . | . . . . . Crushed . | . . . . . Highest Temperature 272 | . 2 . 272 1 Average Temperature 119 | . 2 . 129 1 Received Heat Transfer 432 | . 18 318 72 24 Effects 1 | . . . 1 . Energy Bleed 1 | . . . 1 . Siege Activations . | . . . . . Martial Activations . | . . . . . Shielding Activations . | . . . . . Robots Disrupted . | . . . . . Combat Hostiles . | . . . . . Robots Corrupted . | . . . . . Combat Hostiles . | . . . . . Parts Fried . | . . . . . Impact Corruptions . | . . . . . Robots Melted . | . . . . . Combat Hostiles . | . . . . . Parts Melted . | . . . . . Heat Transferred 873 | . . 623 250 . Parts Sabotaged . | . . . . . Parts Stolen . | . . . . . Parts Stripped . | . . . . . Power Chain Reactions . | . . . . . Alert | -11 -10 -10 -9 -9 ------- Run | Yrd Mat Sub Rec Scr Maximum Alert Level . | . . . . . Low Security (%) 100 | . 100 . 100 . Level 1 . | . . . . . Level 2 . | . . . . . Level 3 . | . . . . . Level 4 . | . . . . . Level 5 . | . . . . . High Security . | . . . . . Max Security . | . . . . . Peak Influence 106 | . 72 . 106 . Initial 48 | . . . 48 . Average 24 | . 33 . 21 . Influence Increases 848 | . 254 295 299 . Destroy 0b10 Robot/C 400 | . 160 200 40 . Destroy 0b10 Robot/NC 10 | . 10 . . . Destroy Leader 54 | . 34 20 . . Successful Hack 23 | . 5 . 18 . Select Force Hacks 270 | . 30 . 240 . Destroy Structure 1 | . . . 1 . Lose Combat Pursuer 90 | . 15 75 . . Influence Decreases 848 | . 201 247 400 . Entered New Map 79 | . . 26 53 . Time Decay 739 | . 201 191 347 . Lost Part 30 | . . 30 . . Squads Dispatched 2 | . 2 . . . Investigation 2 | . 2 . . . Extermination . | . . . . . Reinforcement . | . . . . . Assault . | . . . . . Garrison . | . . . . . Intercept . | . . . . . Searches Triggered . | . . . . . Construction Impeded . | . . . . . Haulers Reinforced . | . . . . . Active Scanning Responses . | . . . . . Cargo Convoy Interrupts . | . . . . . Stealth | -11 -10 -10 -9 -9 --------- Run | Yrd Mat Sub Rec Scr Distress Signals . | . . . . . Communications Jammed . | . . . . . Distress Signals . | . . . . . Times Spotted 40 | . 13 21 2 4 Peak Tracking Total 4 | . 3 4 1 . Tactical Retreats 4 | . 1 3 . . Traps | -11 -10 -10 -9 -9 ------- Run | Yrd Mat Sub Rec Scr Traps Triggered 1 | . 1 . . . Indirectly . | . . . . . Trap Hack Attempts . | . . . . . Triggered . | . . . . . Disarmed . | . . . . . Reprogrammed . | . . . . . Reused . | . . . . . Traps Extracted . | . . . . . Installed . | . . . . . Triggered . | . . . . . Machines | -11 -10 -10 -9 -9 ---------- Run | Yrd Mat Sub Rec Scr Machines Disabled 2 | . . 2 . . Max in Single Turn 1 | . . 1 . . Machines Repaired . | . . . . . Machines Dismantled . | . . . . . Machines Sabotaged . | . . . . . Overloaded Fab Kills . | . . . . . Hacking | -11 -10 -10 -9 -9 --------- Run | Yrd Mat Sub Rec Scr Machines Accessed 22 | . 5 2 13 2 Terminals 9 | . 4 . 5 . Fabricators . | . . . . . Repair Stations . | . . . . . Recycling Units 9 | . 1 . 8 . Scanalyzers . | . . . . . Garrison Access . | . . . . . Total Hacks 65 | . 14 4 21 26 Successful 46 | . 4 4 12 26 Failed 18 | . 9 . 9 . Catastrophic 3 | . 2 . 1 . Database Lockouts 1 | . 1 . . . Manual 33 | . 14 . 19 . Terminals 25 | . 13 . 12 . Fabricators . | . . . . . Repair Stations . | . . . . . Recycling Units 10 | . 1 . 9 . Scanalyzers . | . . . . . Garrison Access . | . . . . . Terminal Hacks 32 | . 2 4 . 26 Record 23 | . . 3 . 20 Robot Analysis 7 | . 1 . . 6 Locate Traps 1 | . 1 . . . Proto ID Catalog 1 | . . 1 . . Fabricator Hacks . | . . . . . Repair Station Hacks . | . . . . . Recycling Unit Hacks . | . . . . . Scanalyzer . | . . . . . Garrison Access Hacks . | . . . . . Unauthorized Hacks 14 | . 2 . 12 . Terminals 5 | . 1 . 4 . Botnet 5 | . 1 . 4 . Fabricators . | . . . . . Repair Stations . | . . . . . Recycling Units 9 | . 1 . 8 . Tunnel 9 | . 1 . 8 . Scanalyzers . | . . . . . Garrison Access . | . . . . . Data Cores Recovered . | . . . . . Used . | . . . . . Hacking Detections 10 | . 4 . 6 . Full Trace Events . | . . . . . Feedback Events . | . . . . . Feedback Blocked . | . . . . . Robot Schematics Acquired . | . . . . . Robots Built . | . . . . . Authchips . | . . . . . Time . | . . . . . Total Robot Build Rating . | . . . . . Part Schematics Acquired . | . . . . . Parts Built . | . . . . . Authchips . | . . . . . Time . | . . . . . Total Part Build Rating . | . . . . . Parts Repaired . | . . . . . Time . | . . . . . Parts Recycled . | . . . . . Recycled Matter . | . . . . . Retrieved Matter . | . . . . . Retrieved Components . | . . . . . Parts Scanalyzed . | . . . . . Part Schematics Acquired . | . . . . . Parts Damaged . | . . . . . Bothacking | -11 -10 -10 -9 -9 ------------ Run | Yrd Mat Sub Rec Scr Used RIF Installer . | . . . . . Robots Hacked 21 | . . . . 21 Non-combat 7 | . . . . 7 Combat 14 | . . . . 14 Robot Hacks Applied 22 | . . . . 22 parse_system 22 | . . . . 22 Relay Couplers Released . | . . . . . Fabnet Peak Effective % . | . . . . . Robots Rewired . | . . . . . Allies Hacked . | . . . . . Hacks Repelled . | . . . . . Allies | -11 -10 -10 -9 -9 -------- Run | Yrd Mat Sub Rec Scr Total Allies . | . . . . . Largest Group . | . . . . . Highest-Rated Group . | . . . . . Highest-Rated Ally . | . . . . . Total Orders . | . . . . . Ally Attacks . | . . . . . Total Damage . | . . . . . Kills . | . . . . . Allies Corrupted . | . . . . . Allies Melted . | . . . . . Intel | -11 -10 -10 -9 -9 ------- Run | Yrd Mat Sub Rec Scr Active Infowar (turns) . | . . . . . Robot Analysis Total 7 | . 1 . . 6 Derelict Logs Recovered 4 | . . . . 4 Drone Launches . | . . . . . Drone Recoveries . | . . . . . Exploration | -11 -10 -10 -9 -9 ------------- Run | Yrd Mat Sub Rec Scr Turns Passed 7277 | . 453 1700 1525 3599 Spaces Moved 3938 | 1 316 953 857 1811 Core 133 | . . . 4 129 Treads 2938 | . . 948 710 1280 Legs 317 | 1 316 . . . Wheels 550 | . . 5 143 402 Hover . | . . . . . Flight . | . . . . . Fastest Speed 50 | 120 120 120 120 50 Average Speed 175 | 120 120 159 171 195 Slowest Speed 400 | 120 120 160 400 240 Overloaded Moves . | . . . . . Propulsion Burnouts . | . . . . . Robots Hopped . | . . . . . Potential Cave-ins . | . . . . . Cave-ins Triggered . | . . . . . Exploration Rate (%) 58 | 2 50 53 97 91 Regions Visited 4 Branch Regions 3 Pre-discovered Areas 15 | . 1 . 8 6 Known Exits Taken 1 | . . 1 . . Unknown Exits Taken 3 | 1 1 . 1 . Scrap Searched 6 | . . 2 . 4 Spaces Dug . | . . . . . Terrain Destroyed 2 | . . 2 . . Melee . | . . . . . Projectile 2 | . . 2 . . AOE . | . . . . . Terrain Rammed . | . . . . . Walls Destroyed . | . . . . . Machines Disabled . | . . . . . Actions | -11 -10 -10 -9 -9 --------- Run | Yrd Mat Sub Rec Scr Total 4140 | . 350 1042 884 1864 Wait 13 | . 5 7 1 . Move 3934 | . 315 952 856 1811 Hop . | . . . . . Pick Up 19 | . 4 8 1 6 Fast Attach 9 | . 2 2 1 4 Attach 9 | . . 6 3 . Detach 5 | . 1 1 1 2 Swap 7 | . 1 2 1 3 Drop 21 | . 2 8 . 11 Fire 84 | . 20 56 8 . Melee 27 | . . . . 27 Ram 2 | . . . 2 . Kick . | . . . . . Crush 10 | . . . 10 . Escape Stasis . | . . . . . Rewire . | . . . . . Trap . | . . . . . Miscellaneous . | . . . . . Route ------- -11/Scrapyard -10/Materials (discovered 3 exits: [*Mat] / [*Min] / *Sub) -10/Subcaves (discovered 2 exits: [*Mat] / *Rec) -9/Recycling (discovered 2 exits: [*Fac] / *Scr) -9/Scraptown (discovered 1 exit: Fac) History --------- Turn | Location | Event 1 | -11/Scrapyard | Discovered new exit (range 0) 1 | -11/Scrapyard | Entered Materials 43 | -10/Materials | Discovered new exit (range 7) 284 | -10/Materials | Discovered new exit (range 16) 316 | -10/Materials | Build established: Mutant 320 | -10/Materials | Central database locked down 441 | -10/Materials | Discovered new exit (range 12) 454 | -10/Materials | Entered Subcaves 1202 | -10/Subcaves | Visited Clippyterm 1207 | -10/Subcaves | Identified exit to Recycling 1353 | -10/Subcaves | Discovered new exit (range 10) 1580 | -10/Subcaves | Visited 4L-MR0's lab 1599 | -10/Subcaves | Found Power Bank 1910 | -10/Subcaves | A swath of the cavern ceiling suddenly collapsed 1983 | -10/Subcaves | Core integrity fell below 50% 2154 | -10/Subcaves | Entered Recycling 3130 | -9/Recycling | Discovered new exit (range 6) 3374 | -9/Recycling | Build established: Scavenger-Mutant 3624 | -9/Recycling | Scanned before Scraplab entrance 3657 | -9/Recycling | Entered Scraplab 3676 | -9/Recycling | Discovered new exit (range 2) 3679 | -9/Recycling | Entered Scraptown 3999 | -9/Scraptown | Visited Awakened 4063 | -9/Scraptown | Visited Cyclists 4092 | -9/Scraptown | Heard Great Nut preacher, LISTEN AND RECITE! 4192 | -9/Scraptown | Visited Shadow of the Wyrm 4246 | -9/Scraptown | Visited Comm Corps 4344 | -9/Scraptown | Visited CR-KLE's Repair Center 4425 | -9/Scraptown | Scanned Subdweller tech in exchange for log data 4430 | -9/Scraptown | Learned location of Armory (-3) 4432 | -9/Scraptown | Learned Factory trap positions 4435 | -9/Scraptown | Learned Factory stockpile data 4437 | -9/Scraptown | Learned location of 1 exit from Lower Caves 5124 | -9/Scraptown | Visited The Evicted 5185 | -9/Scraptown | Visited CPS Storage 5245 | -9/Scraptown | Visited UFD Registry 5265 | -9/Scraptown | Registered with UFD as "Wrenchranger" 5315 | -9/Scraptown | Visited Chapter 10 5386 | -9/Scraptown | Visited Scrap Suit Storage 5429 | -9/Scraptown | Visited Scrapoid Research Area 5744 | -9/Scraptown | Visited Analyses Database 5799 | -9/Scraptown | Visited Infowarlord's Domain 5837 | -9/Scraptown | Visited Junk Repository 5887 | -9/Scraptown | Visited Cartography Club 5964 | -9/Scraptown | Visited Derelict Rescue Squad 5979 | -9/Scraptown | Found DRS Beacon 6055 | -9/Scraptown | Visited Curators Association 6659 | -9/Scraptown | Found Surveybot 17 Chip 6841 | -9/Scraptown | Learned location of Proximity Caves (-5) 6841 | -9/Scraptown | Learned location of Cetus (-5) 6841 | -9/Scraptown | Learned 16 Factory zone layouts 6841 | -9/Scraptown | Learned 20 Factory zone layouts 6841 | -9/Scraptown | Learned 24 Factory zone layouts 6841 | -9/Scraptown | Learned 4 Access zone layouts 6841 | -9/Scraptown | Learned 4 Storage zone layouts 6841 | -9/Scraptown | Learned 8 Lower Caves zone layouts 6841 | -9/Scraptown | Learned 12 Upper Caves zone layouts 6841 | -9/Scraptown | Learned 16 Upper Caves zone layouts 6841 | -9/Scraptown | Learned 20 Upper Caves zone layouts 6841 | -9/Scraptown | Learned 8 Proximity Caves zone layouts 6841 | -9/Scraptown | Learned Factory emergency access door positions 6841 | -9/Scraptown | Learned location of 1 exit from Factory 6841 | -9/Scraptown | Learned location of 3 exits from Proximity Caves 6841 | -9/Scraptown | Identified exit to Factory 7068 | -9/Scraptown | Build established: Mutant 7277 | -9/Scraptown | Attacked by Scraptown defenders 7278 | -9/Scraptown | Destroyed by Triborg with Siege Cannon Last Messages --------------- 06906_ Triggered a sensor switch. 06906_ The wall silently retracts into the floor. 06923_ Acquired Lrg. Storage Unit. 06956_ Q9-RGJ(c): "Come one, come all! See for yourself a fine selection of the many wondrous pieces in our collection!" 07047_ Acquired Com. Wheel. 07078_ Acquired CPS Tube. 07088_ Acquired Hrd. Light Armor Plating. 07091_ Acquired Plasma Cannon. 07205_ Acquired Mni. Grenade Launcher. 07209_ Acquired Power Sword. R5-ZDE(j): We are 0bPrime. We are one. Oh right, I'm not supposed to say that while working as temporary registrar. 07276_ Sneak attack on R5-ZDE(j). 07276_ R5-ZDE(j) Ovr. Titanium Leg severed. 07277_ ANNOUNCEMENT: Intruder alert! Defend Scraptown! 07277_ Com. Wheel destroyed. 07278_ Triborg activates siege mode. 07278_ Penetrated by Siege Slug. Map ----- +----------------------------------------------------+ | ######????????#""""""""""#?????#" """ "#????#" | | ## ""?????????#""""""""""#??????#"" ""#?????#" | | ## ||| #??????#"""""" ""#??????#[" "]#?????#" | | ## """"#??????#" " " ""#?????##"" ""##????#" | | ## ||| #??????#" " "#?????#" "#????#" | | ## """"#??????#"" " "#?????##"" ""##????#" | | ## || #??????#"" ""#??????#/" "=#?????# | | ## """"#??????#"" ""#?????##"" ""##????# | | ## ||| #??????#"" " """#?????#" "#????# | | ## ????????#"" ""#?????######## ####????## | | ### ############ ##########???????##### ########## | | #???????#"""" """""""""" | | #???????#" | | #???????#" | | #???????#" | | #???????#" | | ################# #????####" | | #???????????????# #????"""" """"""""" | | #???????????????# #????"""" """"""""" | | #???????????????# #????"""" ""###### | | #???????????????# #????"""" ""#??? | | ########????????# #????"""" ""#?? | | # "###??????# ###?#"""" ""#? "" | | # #??????# ""#"#"""" ""#? "" | | # "##??????# x %j""""#"""" ""# " | | # #??????# @""#######" "" " | | # #??????# ###?????#" "" " | | # "##??????# #########" ""# " ? | | #??????# j ""# "?? | | # "###??????# ""#? "" | | ########????????# ""#???? | | #???????????????# ""#???? | | ################# TT ""###### | | TT """"""""" | | """"""""" | | | | | | | | #""""#" | | #????#" | | #????#"""""" """""""" | | ############ ########## ####????####### ######## | | #??#" "#??# #????????# ## | | "#??#" "#??# #????????#" ##### | | "#??#" "#??# #????????#"" #?#" | | "#??#" """ "#??# #????????#"""" #?#"! | | # #####??#" """ "#??# #????????#"" " #?#" | | # #??????#" """ "#??# #????????#"""" #?#"! | | # ??????#" "#??# #????????#"" #?#" | | ### ?????#" "#??# #????????#"" #?## | +----------------------------------------------------+ Best States ------------- Heat Dissipation 25 Coolant Potential 50 Energy Generation 15 Energy Capacity 250 Matter Stores 300 Matter Capacity 300 Sight Range 16 Terrain Scan Density 10 Armor Coverage 225 Evasion (%) 55 Targeting Accuracy 5 Recoil Reduction 2 Item Schematics ----------------- None Robot Schematics ------------------ None Fabricated ------------ Nothing Repaired ---------- Nothing Alien Tech Used ----------------- None Achievements -------------- None Challenges ------------ None Game ------ Seed FocalReflexJammer Manual? 0 Play Time 00:33:43 Cumulative 311.7 hours Start 2025.06.11 @ 09:58:15 End 2025.06.11 @ 10:30:23 Sessions 1 Manual Loads 0 Difficulty Rogue Special Mode None Game No. 220 Rogue 220 Adventurer 0 Explorer 0 Win Type - Total 24 Types 18/0/4/2/0/0/0/0/0/0 Lore% 86 Gallery% 74 Achievement% 64 Wizard Run 0 Options --------- Layout 0 ASCII 1 Keyboard 1 Movement Arrows Keybinds 0 Fullscreen 2 Font 18/Terminus Map View 76x50 Zoom Use 0% Tactical HUD 1 Map Filters NONE Filters NONE Steam 1 RUN: adb90b44-88ae-418e-ad74-0ecac0955931